[Event "ESTCC 50 2019"]
[Site "Mali Losinj"]
[Date "2019.09.21"]
[Round "4.20"]
[White "Salter, David"]
[Black "Jenssen, Ove S"]
[Result "1-0"]
[ECO "D04"]
[WhiteElo "1882"]
[BlackElo "1827"]
[Annotator "NA"]
[PlyCount "120"]
[EventDate "2019.09.18"]
[EventType "team-tourn"]
[EventCountry "CRO"]
[SourceTitle "playchess.com"]
[Source "ChessBase"]
[SourceQuality "1"]
[WhiteTeam "Ireland"]
[BlackTeam "Norway"]
[WhiteTeamCountry "IRL"]
[BlackTeamCountry "NOR"]
[TimeControl "40/5400+30:1800+30"]

1. d4 {[%emt 0:00:30]} Nf6 {[%emt 0:00:30]} 2. Nf3 {[%emt 0:00:00]} d5 {[%emt 0:00:30]} 3. e3 {[%emt 0:00:00]} Bg4 {[%emt 0:00:00]} 4. h3 {[%emt 0:00:30]} Bh5 {[%emt 0:00:00]} 5. g4 {[%emt 0:00:30]} Bg6 {[%emt 0:00:30]} 6. Ne5 {[%emt 0:00:30]} e6 {[%emt 0:00:30]} 7. h4 {[%emt 0:02:30]} h6 {[%emt 0:05:30]} 8. Nxg6 {[%emt 0:02:30]} fxg6 {[%emt 0:00:00]} 9. Qd3 {[%emt 0:03:30]} Nc6 {[%emt 0:15:00]} 10. Qxg6+ {[%emt 0:00:30]} Kd7 {[%emt 0:00:30]} 11. Nc3 {[%emt 0:04:30]} Ne7 {[%emt 0:01:30]} 12. Qd3 {[%emt 0:06:30]} Nxg4 {[%emt 0:01:30]} 13. Bh3 {[%emt 0:00:30]} h5 {[%emt 0:01:30]} 14. f3 {[%emt 0:02:30]} Nf6 {[%emt 0:01:30]} 15. Qb5+ {[%emt 0:02:30]} Kc8 {[%emt 0:05:30]} 16. Bxe6+ {[%emt 0:04:30]} Kb8 {[%emt 0:02:30]} 17. Ne2 {[%emt 0:04:30]} a6 {[%emt 0:01:30]} 18. Qd3 {[%emt 0:01:30]} Qd6 {[%emt 0:06:30]} 19. Bh3 {[%emt 0:03:30]} Nc6 {[%emt 0:01:30]} 20. Bd2 {[%emt 0:01:30]} Nb4 {[%emt 0:03:30]} 21. Qb3 {[%emt 0:00:30]} Nc6 {[%emt 0:04:30]} 22. O-O-O {[%emt 0:00:30]} Ka7 {[%emt 0:01:30]} 23. Be1 {[%emt 0:02:30]} Re8 {[%emt 0:02:30]} 24. Nf4 {[%emt 0:10:30]} g6 {[%emt 0:10:30]} 25. Nxg6 {[%emt 0:03:30]} Bh6 {[%emt 0:00:30]} 26. Nxh8 {[%emt 0:00:00]} Rxe3 {[%emt 0:00:30]} 27. Kb1 {[%emt 0:09:00]} Rxb3 {[%emt 0:00:30]} 28. axb3 {[%emt 0:00:00]} Be3 {[%emt 0:03:30]} 29. Bc3 {[%emt 0:10:00]} b5 {[%emt 0:03:30]} 30. Nf7 {[%emt 0:02:30]} Qf4 {[%emt 0:00:30]} 31. Ne5 {[%emt 0:01:30]} Kb7 {[%emt 0:07:30]} 32. Nd3 {[%emt 0:11:12]} Qh6 {[%emt 0:00:30]} 33. Nc5+ {[%emt 0:00:31]} Kb6 {[%emt 0:00:30]} 34. b4 {[%emt 0:01:03]} Qf4 {[%emt 0:01:23]} 35. Bc8 {[%emt 0:03:58]} Nxd4 {[%emt 0:03:44]} 36. Bxd4 {[%emt 0:00:29]} Bxd4 {[%emt 0:01:06]} 37. Ne6 {[%emt 0:00:02]} Qxf3 {[%emt 0:01:09]} 38. Nxd4 {[%emt 0:00:06]} Qg3 {[%emt 0:04:59]} 39. c3 {[%emt 0:00:33]} Ne4 {[%emt 0:00:39]} 40. Rdg1 {[%emt 0:02:03]} Qd3+ {[%emt 0:01:08]} 41. Ka1 {[%emt 0:32:48]} Nd6 {[%emt 0:31:50]} 42. Rd1 {[%emt 0:00:44]} Qe4 {[%emt 0:07:10]} 43. Be6 {[%emt 0:00:00]} Nc4 {[%emt 0:00:00]} 44. Bf5 {[%emt 0:00:00]} Qg2 {[%emt 0:00:00]} 45. Bc2 {[%emt 0:00:00]} Ne3 {[%emt 0:00:00]} 46. Rc1 {[%emt 0:00:00]} a5 {[%emt 0:00:00]} 47. bxa5+ {[%emt 0:00:00]} Kxa5 {[%emt 0:00:00]} 48. Bb3 {[%emt 0:00:00]} c5 {[%emt 0:00:00]} 49. Nc2 {[%emt 0:00:00]} Ng4 {[%emt 0:00:00]} 50. Kb1 {[%emt 0:00:00]} c4 {[%emt 0:00:00]} 51. Ba2 {[%emt 0:00:00]} Qe4 {[%emt 0:00:00]} 52. Rhe1 {[%emt 0:00:00]} Qg6 {[%emt 0:00:00]} 53. Ka1 {[%emt 0:00:00]} Nf2 {[%emt 0:00:00]} 54. Rg1 {[%emt 0:01:48]} Qe4 {[%emt 0:00:00]} 55. Bb1 {[%emt 0:01:46]} Qxh4 {[%emt 0:00:00]} 56. Nb4 {[%emt 0:00:59]} Ng4 {[%emt 0:00:00]} 57. Rce1 {[%emt 0:00:47]} Kb6 {[%emt 0:00:55]} 58. Rgf1 {[%emt 0:00:48]} Nf2 {[%emt 0:07:44]} 59. Nxd5+ {[%emt 0:00:23]} Kc6 {[%emt 0:00:12]} 60. Nb4+ {[%emt 0:00:19]} Kd6 {[%emt 0:01:31]} 1-0

[Event "ESTCC 50 2019"]
[Site "Mali Losinj"]
[Date "2019.09.21"]
[Round "4.21"]
[White "Burchardt, Brigitte"]
[Black "Jackson, Sheila"]
[Result "1/2-1/2"]
[ECO "C54"]
[WhiteElo "2092"]
[BlackElo "2046"]
[Annotator "NA"]
[PlyCount "55"]
[EventDate "2019.09.18"]
[EventType "team-tourn"]
[EventCountry "CRO"]
[SourceTitle "playchess.com"]
[Source "ChessBase"]
[SourceQuality "1"]
[WhiteTeam "Germany"]
[BlackTeam "England"]
[WhiteTeamCountry "GER"]
[BlackTeamCountry "ENG"]
[TimeControl "40/5400+30:1800+30"]

1. e4 {[%emt 0:00:30]} e5 {[%emt 0:00:30]} 2. Bc4 {[%emt 0:00:00]} Nf6 {[%emt 0:00:00]} 3. d3 {[%emt 0:00:00]} Bc5 {[%emt 0:04:00]} 4. Nf3 {[%emt 0:01:30]} d6 {[%emt 0:01:30]} 5. h3 {[%emt 0:02:30]} Nc6 {[%emt 0:00:00]} 6. c3 {[%emt 0:00:30]} Bb6 {[%emt 0:00:00]} 7. a4 {[%emt 0:04:30]} a6 {[%emt 0:00:30]} 8. O-O {[%emt 0:01:30]} h6 {[%emt 0:00:30]} 9. Re1 {[%emt 0:15:30]} O-O {[%emt 0:03:30]} 10. Nbd2 {[%emt 0:05:30]} Be6 {[%emt 0:03:30]} 11. b4 {[%emt 0:10:30]} Ba7 {[%emt 0:08:30]} 12. Bb2 {[%emt 0:10:30]} Re8 {[%emt 0:06:30]} 13. b5 {[%emt 0:05:30]} Bxc4 {[%emt 0:05:30]} 14. Nxc4 {[%emt 0:00:00]} Nb8 {[%emt 0:09:30]} 15. Qc2 {[%emt 0:13:00]} axb5 {[%emt 0:06:30]} 16. axb5 {[%emt 0:00:30]} Nbd7 {[%emt 0:00:30]} 17. d4 {[%emt 0:08:03]} exd4 {[%emt 0:04:30]} 18. cxd4 {[%emt 0:00:06]} d5 {[%emt 0:01:30]} 19. exd5 {[%emt 0:02:52]} Rxe1+ {[%emt 0:01:30]} 20. Rxe1 {[%emt 0:00:09]} Nxd5 {[%emt 0:00:30]} 21. Ne3 {[%emt 0:02:38]} N7f6 {[%emt 0:03:30]} 22. Nxd5 {[%emt 0:00:33]} Nxd5 {[%emt 0:00:30]} 23. Qc4 {[%emt 0:02:05]} Bb6 {[%emt 0:01:30]} 24. Re5 {[%emt 0:01:48]} Ne7 {[%emt 0:04:30]} 25. Qe2 {[%emt 0:00:28]} Nd5 {[%emt 0:01:30]} 26. Qc4 {[%emt 0:00:15]} Ne7 {[%emt 0:00:30]} 27. Qe2 {[%emt 0:01:02]} Nd5 {[%emt 0:00:00]} 28. Qc4 {[%emt 0:00:10]} 1/2-1/2

[Event "ESTCC 50 2019"]
[Site "Mali Losinj"]
[Date "2019.09.21"]
[Round "4.22"]
[White "Mashayekh, Majid"]
[Black "Wagner-Michel, Annett"]
[Result "1/2-1/2"]
[ECO "D53"]
[WhiteElo "1875"]
[BlackElo "2055"]
[Annotator "NA"]
[PlyCount "66"]
[EventDate "2019.09.18"]
[EventType "team-tourn"]
[EventCountry "CRO"]
[SourceTitle "playchess.com"]
[Source "ChessBase"]
[SourceQuality "1"]
[WhiteTeam "England"]
[BlackTeam "Germany"]
[WhiteTeamCountry "ENG"]
[BlackTeamCountry "GER"]
[TimeControl "40/5400+30:1800+30"]

1. d4 {[%emt 0:00:30]} d5 {[%emt 0:00:30]} 2. Nf3 {[%emt 0:00:00]} Nf6 {[%emt 0:00:00]} 3. c4 {[%emt 0:00:00]} e6 {[%emt 0:00:00]} 4. Nc3 {[%emt 0:01:30]} Be7 {[%emt 0:02:30]} 5. Bg5 {[%emt 0:01:30]} h6 {[%emt 0:00:30]} 6. Bh4 {[%emt 0:01:30]} O-O {[%emt 0:00:30]} 7. Qc2 {[%emt 0:00:30]} Nc6 {[%emt 0:10:30]} 8. e3 {[%emt 0:03:30]} a6 {[%emt 0:12:30]} 9. Ne5 {[%emt 0:13:30]} Nxe5 {[%emt 0:04:30]} 10. dxe5 {[%emt 0:00:00]} Ne4 {[%emt 0:11:30]} 11. Bxe7 {[%emt 0:02:00]} Qxe7 {[%emt 0:00:30]} 12. Bd3 {[%emt 0:01:30]} Nxc3 {[%emt 0:04:30]} 13. Qxc3 {[%emt 0:00:30]} c5 {[%emt 0:01:30]} 14. O-O {[%emt 0:05:30]} dxc4 {[%emt 0:02:30]} 15. Qxc4 {[%emt 0:06:30]} Rb8 {[%emt 0:08:30]} 16. Rac1 {[%emt 0:08:30]} b6 {[%emt 0:00:30]} 17. Be4 {[%emt 0:14:30]} Bb7 {[%emt 0:05:30]} 18. Bxb7 {[%emt 0:02:30]} Qxb7 {[%emt 0:00:30]} 19. Rfd1 {[%emt 0:01:30]} Rfd8 {[%emt 0:07:30]} 20. f3 {[%emt 0:02:30]} Rd5 {[%emt 0:02:30]} 21. Rxd5 {[%emt 0:05:30]} exd5 {[%emt 0:03:30]} 22. Qd3 {[%emt 0:01:30]} Rd8 {[%emt 0:02:27]} 23. f4 {[%emt 0:06:30]} g6 {[%emt 0:03:48]} 24. e6 {[%emt 0:02:00]} f5 {[%emt 0:03:17]} 25. g4 {[%emt 0:02:21]} fxg4 {[%emt 0:03:57]} 26. Qxg6+ {[%emt 0:01:25]} Qg7 {[%emt 0:00:02]} 27. Qh5 {[%emt 0:10:45]} Kf8 {[%emt 0:03:58]} 28. Rd1 {[%emt 0:02:13]} d4 {[%emt 0:01:36]} 29. e4 {[%emt 0:01:27]} d3 {[%emt 0:00:25]} 30. e5 {[%emt 0:00:21]} Ke7 {[%emt 0:00:29]} 31. Qh4+ {[%emt 0:01:13]} Ke8 {[%emt 0:01:01]} 32. Qh5+ {[%emt 0:00:36]} Ke7 {[%emt 0:00:33]} 33. Qh4+ {[%emt 0:00:53]} Ke8 {[%emt 0:00:02]} 1/2-1/2

[Event "ESTCC 50 2019"]
[Site "Mali Losinj"]
[Date "2019.09.21"]
[Round "4.23"]
[White "Kierzek, Mira"]
[Black "Wood, Peter R"]
[Result "0-1"]
[ECO "D05"]
[WhiteElo "2015"]
[BlackElo "1884"]
[Annotator "NA"]
[PlyCount "138"]
[EventDate "2019.09.18"]
[EventType "team-tourn"]
[EventCountry "CRO"]
[SourceTitle "playchess.com"]
[Source "ChessBase"]
[SourceQuality "1"]
[WhiteTeam "Germany"]
[BlackTeam "England"]
[WhiteTeamCountry "GER"]
[BlackTeamCountry "ENG"]
[TimeControl "40/5400+30:1800+30"]

1. d4 {[%emt 0:00:30]} Nf6 {[%emt 0:00:30]} 2. Nf3 {[%emt 0:00:00]} e6 {[%emt 0:00:30]} 3. e3 {[%emt 0:00:00]} c5 {[%emt 0:02:30]} 4. Bd3 {[%emt 0:02:30]} d5 {[%emt 0:03:30]} 5. b3 {[%emt 0:02:30]} Be7 {[%emt 0:06:30]} 6. O-O {[%emt 0:01:30]} Nbd7 {[%emt 0:01:30]} 7. Bb2 {[%emt 0:01:30]} b6 {[%emt 0:03:30]} 8. Nbd2 {[%emt 0:03:30]} Bb7 {[%emt 0:00:30]} 9. Ne5 {[%emt 0:00:30]} O-O {[%emt 0:12:30]} 10. Rc1 {[%emt 0:02:30]} Ne4 {[%emt 0:07:30]} 11. f3 {[%emt 0:13:30]} Nxd2 {[%emt 0:02:30]} 12. Qxd2 {[%emt 0:00:00]} cxd4 {[%emt 0:00:30]} 13. exd4 {[%emt 0:01:00]} Nxe5 {[%emt 0:07:30]} 14. dxe5 {[%emt 0:00:30]} Bc5+ {[%emt 0:00:30]} 15. Kh1 {[%emt 0:00:30]} Qe7 {[%emt 0:23:30]} 16. Rcd1 {[%emt 0:05:30]} Rfd8 {[%emt 0:03:30]} 17. Qe2 {[%emt 0:09:30]} a5 {[%emt 0:02:30]} 18. c3 {[%emt 0:13:30]} Qh4 {[%emt 0:01:46]} 19. a3 {[%emt 0:07:30]} Bc6 {[%emt 0:08:13]} 20. b4 {[%emt 0:03:30]} Bf8 {[%emt 0:00:36]} 21. Qe3 {[%emt 0:13:48]} Rab8 {[%emt 0:00:57]} 22. f4 {[%emt 0:02:15]} g6 {[%emt 0:01:58]} 23. Be2 {[%emt 0:05:26]} Qe7 {[%emt 0:00:32]} 24. Qf2 {[%emt 0:02:33]} Bg7 {[%emt 0:01:23]} 25. Qe3 {[%emt 0:01:33]} Ba4 {[%emt 0:00:35]} 26. Rc1 {[%emt 0:00:47]} Bb3 {[%emt 0:01:09]} 27. c4 {[%emt 0:01:42]} dxc4 {[%emt 0:00:26]} 28. Bxc4 {[%emt 0:00:08]} Bxc4 {[%emt 0:00:43]} 29. Rxc4 {[%emt 0:00:02]} Qd7 {[%emt 0:00:36]} 30. Rd4 {[%emt 0:01:06]} Qb5 {[%emt 0:01:00]} 31. Rfd1 {[%emt 0:01:18]} Rxd4 {[%emt 0:00:10]} 32. Qxd4 {[%emt 0:01:18]} Bf8 {[%emt 0:00:10]} 33. Bc3 {[%emt 0:01:16]} axb4 {[%emt 0:00:56]} 34. Bxb4 {[%emt 0:00:21]} Qa4 {[%emt 0:01:05]} 35. h3 {[%emt 0:00:41]} Qc6 {[%emt 0:01:04]} 36. Bd6 {[%emt 0:01:26]} Rc8 {[%emt 0:00:21]} 37. Qb4 {[%emt 0:00:30]} b5 {[%emt 0:01:12]} 38. Rb1 {[%emt 0:00:50]} Qc4 {[%emt 0:02:42]} 39. Kh2 {[%emt 0:01:45]} Bh6 {[%emt 0:00:31]} 40. Qxc4 {[%emt 0:00:36]} bxc4 {[%emt 0:00:10]} 41. g3 {[%emt 0:30:30]} c3 {[%emt 0:00:45]} 42. Kg2 {[%emt 0:00:00]} c2 {[%emt 0:01:30]} 43. Rc1 {[%emt 0:00:00]} g5 {[%emt 0:00:30]} 44. Kf3 {[%emt 0:00:00]} gxf4 {[%emt 0:00:30]} 45. gxf4 {[%emt 0:00:00]} Rc4 {[%emt 0:00:30]} 46. Ke2 {[%emt 0:00:00]} Bxf4 {[%emt 0:00:30]} 47. Rg1+ {[%emt 0:00:00]} Kh8 {[%emt 0:00:30]} 48. Be7 {[%emt 0:00:00]} Bxe5 {[%emt 0:00:30]} 49. Bg5 {[%emt 0:00:00]} Bb2 {[%emt 0:07:30]} 50. Bc1 {[%emt 0:00:00]} Bxc1 {[%emt 0:00:30]} 51. Rxc1 {[%emt 0:00:00]} Rc3 {[%emt 0:00:30]} 52. a4 {[%emt 0:00:00]} Ra3 {[%emt 0:03:30]} 53. Rxc2 {[%emt 0:00:00]} Rxa4 {[%emt 0:00:30]} 54. Rc3 {[%emt 0:00:00]} Kg7 {[%emt 0:00:30]} 55. Kf2 {[%emt 0:00:00]} f5 {[%emt 0:00:30]} 56. Kg3 {[%emt 0:00:00]} Kg6 {[%emt 0:00:30]} 57. Rc8 {[%emt 0:00:00]} e5 {[%emt 0:03:14]} 58. Re8 {[%emt 0:00:13]} Ra3+ {[%emt 0:01:34]} 59. Kg2 {[%emt 0:00:41]} e4 {[%emt 0:01:15]} 60. Rg8+ {[%emt 0:00:36]} Kh5 {[%emt 0:01:42]} 61. Rg7 {[%emt 0:01:18]} h6 {[%emt 0:01:21]} 62. Rg8 {[%emt 0:00:16]} Kh4 {[%emt 0:00:35]} 63. Rf8 {[%emt 0:01:22]} Ra2+ {[%emt 0:00:36]} 64. Kf1 {[%emt 0:00:25]} Kg5 {[%emt 0:00:51]} 65. Rg8+ {[%emt 0:00:24]} Kf4 {[%emt 0:00:31]} 66. Rh8 {[%emt 0:00:29]} Kf3 {[%emt 0:00:16]} 67. Kg1 {[%emt 0:01:29]} e3 {[%emt 0:00:25]} 68. Rb8 {[%emt 0:00:59]} Ra1+ {[%emt 0:01:18]} 69. Kh2 {[%emt 0:00:20]} e2 {[%emt 0:00:12]} 0-1

[Event "ESTCC 50 2019"]
[Site "Mali Losinj"]
[Date "2019.09.21"]
[Round "4.24"]
[White "Denning, Julie L"]
[Black "Leib, Britta"]
[Result "0-1"]
[ECO "E76"]
[WhiteElo "1629"]
[BlackElo "1883"]
[Annotator "NA"]
[PlyCount "66"]
[EventDate "2019.09.18"]
[EventType "team-tourn"]
[EventCountry "CRO"]
[SourceTitle "playchess.com"]
[Source "ChessBase"]
[SourceQuality "1"]
[WhiteTeam "England"]
[BlackTeam "Germany"]
[WhiteTeamCountry "ENG"]
[BlackTeamCountry "GER"]
[TimeControl "40/5400+30:1800+30"]

1. d4 {[%emt 0:00:30]} Nf6 {[%emt 0:00:30]} 2. c4 {[%emt 0:00:00]} g6 {[%emt 0:00:00]} 3. Nc3 {[%emt 0:00:00]} Bg7 {[%emt 0:00:00]} 4. e4 {[%emt 0:00:30]} d6 {[%emt 0:00:30]} 5. f4 {[%emt 0:00:30]} c5 {[%emt 0:17:30]} 6. dxc5 {[%emt 0:02:30]} Qa5 {[%emt 0:01:30]} 7. Qa4+ {[%emt 0:05:30]} Qxa4 {[%emt 0:01:30]} 8. Nxa4 {[%emt 0:00:00]} Nxe4 {[%emt 0:01:30]} 9. Bd3 {[%emt 0:06:00]} Nxc5 {[%emt 0:09:30]} 10. Nxc5 {[%emt 0:00:30]} dxc5 {[%emt 0:00:30]} 11. Nf3 {[%emt 0:00:30]} Nc6 {[%emt 0:03:30]} 12. Rb1 {[%emt 0:05:30]} Nb4 {[%emt 0:04:30]} 13. Be2 {[%emt 0:02:30]} Bf5 {[%emt 0:01:30]} 14. a3 {[%emt 0:02:30]} Bxb1 {[%emt 0:09:30]} 15. axb4 {[%emt 0:00:00]} cxb4 {[%emt 0:00:00]} 16. O-O {[%emt 0:00:00]} Be4 {[%emt 0:06:00]} 17. Nd2 {[%emt 0:07:30]} Bc6 {[%emt 0:09:30]} 18. b3 {[%emt 0:05:30]} e6 {[%emt 0:02:30]} 19. Nf3 {[%emt 0:04:30]} O-O {[%emt 0:08:30]} 20. Be3 {[%emt 0:00:30]} Bc3 {[%emt 0:01:30]} 21. Nd4 {[%emt 0:02:30]} Be4 {[%emt 0:01:23]} 22. Rc1 {[%emt 0:05:30]} Rfd8 {[%emt 0:01:45]} 23. Nb5 {[%emt 0:03:30]} Bd2 {[%emt 0:01:56]} 24. Bxd2 {[%emt 0:01:30]} Rxd2 {[%emt 0:00:08]} 25. Kf1 {[%emt 0:03:30]} a6 {[%emt 0:01:40]} 26. Ke1 {[%emt 0:01:30]} Rad8 {[%emt 0:01:55]} 27. Nc3 {[%emt 0:03:30]} bxc3 {[%emt 0:00:57]} 28. Rxc3 {[%emt 0:00:30]} Bxg2 {[%emt 0:00:49]} 29. Rg3 {[%emt 0:01:30]} Bc6 {[%emt 0:00:24]} 30. Rc3 {[%emt 0:00:30]} Rb2 {[%emt 0:01:01]} 31. Kf1 {[%emt 0:02:30]} Rd4 {[%emt 0:00:56]} 32. Kf2 {[%emt 0:04:30]} Rxf4+ {[%emt 0:01:51]} 33. Ke3 {[%emt 0:00:30]} Re4+ {[%emt 0:00:17]} 0-1

[Event "ESTCC 50 2019"]
[Site "Mali Losinj"]
[Date "2019.09.22"]
[Round "5.5"]
[White "Mikhalchishin, Adrian"]
[Black "Kozul, Zdenko"]
[Result "1/2-1/2"]
[ECO "B57"]
[WhiteElo "2465"]
[BlackElo "2569"]
[Annotator "ChessBase"]
[PlyCount "49"]
[EventDate "2019.09.18"]
[EventType "team-tourn"]
[EventCountry "CRO"]
[SourceTitle "playchess.com"]
[Source "ChessBase"]
[SourceQuality "1"]
[WhiteTeam "Slovenia"]
[BlackTeam "Croatia"]
[WhiteTeamCountry "SLO"]
[BlackTeamCountry "CRO"]
[TimeControl "40/5400+30:1800+30"]

1. e4 {[%emt 0:00:30]} c5 {[%emt 0:00:30]} 2. Nf3 {[%emt 0:00:00]} Nc6 {[%emt 0:01:30]} 3. d4 {[%emt 0:01:00]} cxd4 {[%emt 0:00:30]} 4. Nxd4 {[%emt 0:00:00]} Nf6 {[%emt 0:00:30]} 5. Nc3 {[%emt 0:00:00]} d6 {[%emt 0:00:30]} 6. Bc4 {[%emt 0:00:30]} Qb6 {[%emt 0:01:30]} 7. Nxc6 {[%emt 0:00:30]} bxc6 {[%emt 0:00:30]} 8. O-O {[%emt 0:00:30]} g6 {[%emt 0:02:30]} 9. Qe1 {[%emt 0:02:30]} Qc7 {[%emt 0:02:30]} 10. Bf4 {[%emt 0:05:30]} Nd7 {[%emt 0:07:30]} 11. Qd2 {[%emt 0:01:30]} Bg7 {[%emt 0:00:30]} 12. Bh6 {[%emt 0:01:30]} O-O {[%emt 0:00:30]} 13. Bxg7 {[%emt 0:02:30]} Kxg7 {[%emt 0:00:30]} 14. Rad1 {[%emt 0:00:30]} Rb8 {[%emt 0:07:30]} 15. b3 {[%emt 0:00:30]} Nf6 {[%emt 0:03:30]} 16. h3 {[%emt 0:03:30]} Bb7 {[%emt 0:18:30]} 17. Qe3 {[%emt 0:05:30]} Rfd8 {[%emt 0:08:30]} 18. Qxa7 {[%emt 0:16:30]} Ra8 {[%emt 0:01:30]} 19. Qe3 {[%emt 0:01:30]} d5 {[%emt 0:00:00]} 20. exd5 {[%emt 0:09:30]} cxd5 {[%emt 0:01:00]} 21. Nb5 {[%emt 0:00:30]} Qc6 {[%emt 0:19:30]} 22. Nd4 {[%emt 0:02:30]} Qc7 {[%emt 0:00:30]} 23. Nb5 {[%emt 0:03:30]} Qc6 {[%emt 0:00:30]} 24. Nd4 {[%emt 0:00:30]} Qc7 {[%emt 0:00:30]} 25. Nb5 {[%emt 0:10:30]} 1/2-1/2

[Event "ESTCC 50 2019"]
[Site "Mali Losinj"]
[Date "2019.09.22"]
[Round "5.7"]
[White "Mencinger, Vojko"]
[Black "Kurajica, Bojan"]
[Result "0-1"]
[ECO "B06"]
[WhiteElo "2332"]
[BlackElo "2493"]
[Annotator "ChessBase"]
[PlyCount "92"]
[EventDate "2019.09.18"]
[EventType "team-tourn"]
[EventCountry "CRO"]
[SourceTitle "playchess.com"]
[Source "ChessBase"]
[SourceQuality "1"]
[WhiteTeam "Slovenia"]
[BlackTeam "Croatia"]
[WhiteTeamCountry "SLO"]
[BlackTeamCountry "CRO"]
[TimeControl "40/5400+30:1800+30"]

1. e4 {[%emt 0:01:30]} c5 {[%emt 0:00:30]} 2. c3 {[%emt 0:00:30]} d5 {[%emt 0:00:30]} 3. exd5 {[%emt 0:00:30]} Qxd5 {[%emt 0:00:00]} 4. d4 {[%emt 0:00:00]} g6 {[%emt 0:00:00]} 5. Nf3 {[%emt 0:01:00]} Bg7 {[%emt 0:00:30]} 6. Na3 {[%emt 0:02:30]} cxd4 {[%emt 0:04:30]} 7. Bc4 {[%emt 0:01:30]} Qe4+ {[%emt 0:03:30]} 8. Be3 {[%emt 0:02:30]} Nh6 {[%emt 0:00:30]} 9. cxd4 {[%emt 0:01:30]} O-O {[%emt 0:00:30]} 10. O-O {[%emt 0:01:30]} Bg4 {[%emt 0:03:30]} 11. Ng5 {[%emt 0:05:30]} Qxe3 {[%emt 0:02:30]} 12. fxe3 {[%emt 0:00:30]} Bxd1 {[%emt 0:00:00]} 13. Raxd1 {[%emt 0:00:30]} Nc6 {[%emt 0:00:00]} 14. Nc2 {[%emt 0:05:30]} Rac8 {[%emt 0:01:30]} 15. Bd3 {[%emt 0:04:30]} Rfd8 {[%emt 0:04:30]} 16. h3 {[%emt 0:04:30]} e5 {[%emt 0:03:30]} 17. dxe5 {[%emt 0:02:30]} Bxe5 {[%emt 0:18:30]} 18. b3 {[%emt 0:02:30]} Kg7 {[%emt 0:05:30]} 19. Be4 {[%emt 0:04:30]} Bf6 {[%emt 0:01:30]} 20. Nf3 {[%emt 0:00:30]} Re8 {[%emt 0:01:30]} 21. Bd3 {[%emt 0:01:30]} Ne5 {[%emt 0:01:30]} 22. Nxe5 {[%emt 0:04:30]} Rxe5 {[%emt 0:02:30]} 23. Rf2 {[%emt 0:10:30]} Rc3 {[%emt 0:02:30]} 24. g4 {[%emt 0:09:30]} Bg5 {[%emt 0:07:30]} 25. Rf3 {[%emt 0:07:30]} Ra5 {[%emt 0:08:30]} 26. Be4 {[%emt 0:08:51]} Rxa2 {[%emt 0:02:30]} 27. Rd7 {[%emt 0:00:20]} Rcxc2 {[%emt 0:00:30]} 28. Bxc2 {[%emt 0:00:05]} Rxc2 {[%emt 0:00:30]} 29. Rxb7 {[%emt 0:00:05]} Ra2 {[%emt 0:01:30]} 30. Rb5 {[%emt 0:01:54]} Bd8 {[%emt 0:03:30]} 31. Rb7 {[%emt 0:01:14]} Bb6 {[%emt 0:03:20]} 32. Kf1 {[%emt 0:00:06]} g5 {[%emt 0:00:38]} 33. Rd7 {[%emt 0:00:44]} Bc5 {[%emt 0:03:38]} 34. h4 {[%emt 0:07:29]} gxh4 {[%emt 0:02:46]} 35. b4 {[%emt 0:00:01]} Bxb4 {[%emt 0:03:57]} 36. g5 {[%emt 0:00:08]} Ng4 {[%emt 0:00:29]} 37. Rfxf7+ {[%emt 0:00:12]} Kg6 {[%emt 0:01:17]} 38. Rg7+ {[%emt 0:00:23]} Kf5 {[%emt 0:00:08]} 39. Rdf7+ {[%emt 0:01:20]} Ke6 {[%emt 0:03:39]} 40. Rxh7 {[%emt 0:01:34]} Nxe3+ {[%emt 0:02:10]} 41. Kg1 {[%emt 0:30:06]} Bc5 {[%emt 0:32:08]} 42. Rf6+ {[%emt 0:03:35]} Kd5 {[%emt 0:02:05]} 43. Rff7 {[%emt 0:00:00]} h3 {[%emt 0:00:00]} 44. Rd7+ {[%emt 0:00:00]} Ke6 {[%emt 0:00:00]} 45. g6 {[%emt 0:00:00]} Rg2+ {[%emt 0:00:00]} 46. Kh1 {[%emt 0:00:00]} Ng4 {[%emt 0:00:00]} 0-1

[Event "ESTCC 50 2019"]
[Site "Mali Losinj"]
[Date "2019.09.22"]
[Round "5.8"]
[White "Fercec, Nenad"]
[Black "Plesec, Damjan"]
[Result "1-0"]
[ECO "C10"]
[WhiteElo "2439"]
[BlackElo "2216"]
[Annotator "NA"]
[PlyCount "61"]
[EventDate "2019.09.18"]
[EventType "team-tourn"]
[EventCountry "CRO"]
[SourceTitle "playchess.com"]
[Source "ChessBase"]
[SourceQuality "1"]
[WhiteTeam "Croatia"]
[BlackTeam "Slovenia"]
[WhiteTeamCountry "CRO"]
[BlackTeamCountry "SLO"]
[TimeControl "40/5400+30:1800+30"]

1. e4 {[%emt 0:00:30]} e6 {[%emt 0:00:30]} 2. d4 {[%emt 0:00:30]} d5 {[%emt 0:00:30]} 3. Nd2 {[%emt 0:00:00]} dxe4 {[%emt 0:01:30]} 4. Nxe4 {[%emt 0:01:00]} Bd7 {[%emt 0:01:30]} 5. Nf3 {[%emt 0:00:30]} Bc6 {[%emt 0:00:00]} 6. Neg5 {[%emt 0:00:00]} Nd7 {[%emt 0:03:00]} 7. Bc4 {[%emt 0:04:00]} h6 {[%emt 0:17:30]} 8. Nxf7 {[%emt 0:00:00]} Kxf7 {[%emt 0:00:30]} 9. d5 {[%emt 0:00:00]} exd5 {[%emt 0:02:30]} 10. Bxd5+ {[%emt 0:00:30]} Ke8 {[%emt 0:02:30]} 11. O-O {[%emt 0:00:00]} Qf6 {[%emt 0:07:30]} 12. Re1+ {[%emt 0:01:00]} Be7 {[%emt 0:02:30]} 13. Bxc6 {[%emt 0:01:30]} bxc6 {[%emt 0:02:30]} 14. c3 {[%emt 0:00:30]} Rd8 {[%emt 0:17:30]} 15. Nd4 {[%emt 0:15:30]} Nb6 {[%emt 0:03:30]} 16. Qe2 {[%emt 0:03:30]} Rxd4 {[%emt 0:01:30]} 17. cxd4 {[%emt 0:00:30]} g6 {[%emt 0:07:30]} 18. Bd2 {[%emt 0:00:30]} Kd7 {[%emt 0:01:30]} 19. Rac1 {[%emt 0:01:30]} Nd5 {[%emt 0:02:30]} 20. b4 {[%emt 0:01:30]} Bd8 {[%emt 0:09:32]} 21. b5 {[%emt 0:28:30]} cxb5 {[%emt 0:01:55]} 22. Qxb5+ {[%emt 0:01:30]} c6 {[%emt 0:00:21]} 23. Qb7+ {[%emt 0:00:30]} Bc7 {[%emt 0:00:31]} 24. Ba5 {[%emt 0:00:30]} Qd6 {[%emt 0:00:53]} 25. Bxc7 {[%emt 0:00:00]} Qxc7 {[%emt 0:06:23]} 26. Qa8 {[%emt 0:00:00]} Qc8 {[%emt 0:01:05]} 27. Qxa7+ {[%emt 0:00:30]} Qc7 {[%emt 0:00:24]} 28. Qa8 {[%emt 0:00:00]} Qc8 {[%emt 0:00:08]} 29. Qxc8+ {[%emt 0:00:00]} Kxc8 {[%emt 0:00:05]} 30. Re8+ {[%emt 0:03:30]} Kd7 {[%emt 0:00:11]} 31. Rb8 {[%emt 0:00:00]} 1-0